[Event "Internationales Werder Bremen IM-Turnier"]
[Site "SV Werder Bremen, Clubräume in der Hemelinger Straße 17, Germany"]
[Date "2018.06.20"]
[Round "5.5"]
[White "Ahlander, Björn"]
[Black "Charmeteau, Sven"]
[Result "1-0"]
[TimeControl "90 Minuten/40 Züge + 30 Minuten/Rest + 30 Sekunden ab dem ersten Zug"]
[WhiteTitle "IM"]
[BlackTitle "FM"]
[WhiteFideId "1700251"]
[BlackFideId "638285"]
[WhiteElo "2435"]
[BlackElo "2287"]

1. d4 {[%clk 01:30:56]} {[%emt 00:00:02]} Nf6 {[%clk 01:30:55]} {[%emt
00:00:06]} 2. Nf3 {[%clk 01:31:09]} {[%emt 00:00:16]} g6 {[%clk 01:31:09]}
{[%emt 00:00:16]} 3. e3 {[%clk 01:31:29]} {[%emt 00:00:09]} Bg7 {[%clk
01:30:58]} {[%emt 00:00:42]} 4. Be2 {[%clk 01:31:49]} {[%emt 00:00:09]} b6
{[%clk 01:30:03]} {[%emt 00:01:26]} 5. O-O {[%clk 01:26:13]} {[%emt 00:06:06]}
O-O {[%clk 01:29:59]} {[%emt 00:00:34]} 6. a4 {[%clk 01:17:33]} {[%emt
00:09:10]} a6 {[%clk 01:25:42]} {[%emt 00:04:48]} 7. b4 {[%clk 01:12:43]}
{[%emt 00:05:18]} c5 {[%clk 01:22:54]} {[%emt 00:03:18]} 8. c3 {[%clk
01:09:55]} {[%emt 00:03:18]} Bb7 {[%clk 01:22:49]} {[%emt 00:00:35]} 9. bxc5
{[%clk 01:07:10]} {[%emt 00:03:16]} bxc5 {[%clk 01:23:12]} {[%emt 00:00:07]} 10.
Ba3 {[%clk 01:05:23]} {[%emt 00:02:16]} cxd4 {[%clk 01:22:59]} {[%emt
00:00:43]} 11. cxd4 {[%clk 01:05:47]} {[%emt 00:00:05]} d6 {[%clk 01:14:01]}
{[%emt 00:09:29]} 12. Nbd2 {[%clk 01:00:42]} {[%emt 00:05:34]} Nbd7 {[%clk
01:10:36]} {[%emt 00:03:55]} 13. Bd3 {[%clk 00:57:23]} {[%emt 00:03:48]} Re8
{[%clk 00:52:44]} {[%emt 00:18:23]} 14. Rb1 {[%clk 00:52:27]} {[%emt 00:05:26]}
Rb8 {[%clk 00:52:13]} {[%emt 00:01:01]} 15. Bc4 {[%clk 00:45:06]} {[%emt
00:07:51]} Qa5 {[%clk 00:46:06]} {[%emt 00:06:38]} 16. Bb4 {[%clk 00:39:23]}
{[%emt 00:06:12]} Qf5 {[%clk 00:43:14]} {[%emt 00:03:22]} 17. Qe2 {[%clk
00:35:33]} {[%emt 00:04:20]} a5 {[%clk 00:36:34]} {[%emt 00:07:11]} 18. Ba3
{[%clk 00:32:49]} {[%emt 00:03:13]} Bc6 {[%clk 00:16:55]} {[%emt 00:20:10]} 19.
Rbc1 {[%clk 00:25:45]} {[%emt 00:07:33]} Ba8 {[%clk 00:07:41]} {[%emt
00:09:44]} 20. h3 {[%clk 00:23:27]} {[%emt 00:02:47]} Qh5 {[%clk 00:05:12]}
{[%emt 00:03:00]} 21. Bb5 {[%clk 00:17:43]} {[%emt 00:06:14]} Rec8 {[%clk
00:03:45]} {[%emt 00:01:57]} 22. e4 {[%clk 00:14:24]} {[%emt 00:03:48]} Nb6
{[%clk 00:03:48]} {[%emt 00:00:28]} 23. d5 {[%clk 00:10:51]} {[%emt 00:04:03]}
Nfd7 {[%clk 00:01:36]} {[%emt 00:02:42]} 24. Nb3 {[%clk 00:10:01]} {[%emt
00:01:19]} f5 {[%clk 00:01:05]} {[%emt 00:01:02]} 25. Bc6 {[%clk 00:02:57]}
{[%emt 00:07:34]} Bxc6 {[%clk 00:00:47]} {[%emt 00:00:49]} 26. dxc6 {[%clk
00:03:25]} {[%emt 00:00:02]} Ne5 {[%clk 00:01:05]} {[%emt 00:00:12]} 27. Nbd4
{[%clk 00:03:16]} {[%emt 00:00:38]} Nxa4 {[%clk 00:00:33]} {[%emt 00:01:03]} 28.
exf5 {[%clk 00:03:02]} {[%emt 00:00:43]} gxf5 {[%clk 00:00:42]} {[%emt
00:00:21]} 29. Bxd6 {[%clk 00:02:47]} {[%emt 00:00:45]} Rb2 {[%clk 00:00:34]}
{[%emt 00:00:39]} 30. Qa6 {[%clk 00:02:52]} {[%emt 00:00:24]} Nxf3+ {[%clk
00:00:34]} {[%emt 00:00:30]} 31. Nxf3 {[%clk 00:03:20]} {[%emt 00:00:02]} Qe8
{[%clk 00:00:34]} {[%emt 00:00:30]} 32. Ba3 {[%clk 00:01:03]} {[%emt 00:02:47]}
1-0

[Event "Internationales Werder Bremen IM-Turnier"]
[Site "SV Werder Bremen, Clubräume in der Hemelinger Straße 17, Germany"]
[Date "2018.06.20"]
[Round "5.1"]
[White "Wachinger, Nikolas"]
[Black "Grigorian, Spartak"]
[Result "1/2-1/2"]
[TimeControl "90 Minuten/40 Züge + 30 Minuten/Rest + 30 Sekunden ab dem ersten Zug"]
[WhiteFideId "12962791"]
[BlackFideId "24661490"]
[WhiteElo "2292"]
[BlackElo "2359"]

1. e4 {[%clk 01:30:57]} {[%emt 00:00:02]} e6 {[%clk 01:30:55]} {[%emt
00:00:06]} 2. d4 {[%clk 01:31:03]} {[%emt 00:00:23]} d5 {[%clk 01:31:21]}
{[%emt 00:00:04]} 3. Nd2 {[%clk 01:30:49]} {[%emt 00:00:44]} dxe4 {[%clk
01:31:43]} {[%emt 00:00:08]} 4. Nxe4 {[%clk 01:31:09]} {[%emt 00:00:09]} Nd7
{[%clk 01:32:11]} {[%emt 00:00:03]} 5. Nf3 {[%clk 01:31:11]} {[%emt 00:00:28]}
Ngf6 {[%clk 01:32:30]} {[%emt 00:00:11]} 6. Bd3 {[%clk 01:31:13]} {[%emt
00:00:28]} c5 {[%clk 01:32:54]} {[%emt 00:00:07]} 7. Bg5 {[%clk 01:28:15]}
{[%emt 00:03:27]} cxd4 {[%clk 01:33:04]} {[%emt 00:00:20]} 8. O-O {[%clk
01:26:32]} {[%emt 00:02:13]} Qb6 {[%clk 01:03:46]} {[%emt 00:29:48]} 9. Bxf6
{[%clk 01:22:01]} {[%emt 00:05:01]} Nxf6 {[%clk 00:58:36]} {[%emt 00:05:40]} 10.
Nxf6+ {[%clk 01:21:55]} {[%emt 00:00:36]} gxf6 {[%clk 00:59:05]} {[%emt
00:00:01]} 11. Nxd4 {[%clk 01:21:54]} {[%emt 00:00:31]} Bd7 {[%clk 00:59:31]}
{[%emt 00:00:03]} 12. c3 {[%clk 01:10:21]} {[%emt 00:12:04]} Bc5 {[%clk
00:52:52]} {[%emt 00:07:09]} 13. Nb3 {[%clk 01:07:54]} {[%emt 00:02:57]} Bc6
{[%clk 00:46:31]} {[%emt 00:06:51]} 14. Qh5 {[%clk 00:58:04]} {[%emt 00:10:20]}
Rg8 {[%clk 00:23:30]} {[%emt 00:23:31]} 15. g3 {[%clk 00:57:52]} {[%emt
00:00:41]} Rg5 {[%clk 00:23:58]} {[%emt 00:00:02]} 16. Qxh7 {[%clk 00:52:05]}
{[%emt 00:06:17]} Ke7 {[%clk 00:24:21]} {[%emt 00:00:07]} 17. Be2 {[%clk
00:49:03]} {[%emt 00:03:33]} Rag8 {[%clk 00:20:52]} {[%emt 00:03:59]} 18. Nxc5
{[%clk 00:42:11]} {[%emt 00:07:22]} Qxc5 {[%clk 00:21:02]} {[%emt 00:00:20]} 19.
Qd3 {[%clk 00:41:36]} {[%emt 00:01:05]} Rd8 {[%clk 00:08:56]} {[%emt 00:12:36]}
20. Qc4 {[%clk 00:38:01]} {[%emt 00:04:05]} Rd2 {[%clk 00:04:09]} {[%emt
00:05:16]} 21. b4 {[%clk 00:35:02]} {[%emt 00:03:31]} Qf5 {[%clk 00:02:51]}
{[%emt 00:01:48]} 22. b5 {[%clk 00:15:21]} {[%emt 00:20:11]} Qxb5 {[%clk
00:03:15]} {[%emt 00:00:05]} 23. Qxb5 {[%clk 00:15:26]} {[%emt 00:00:26]} Bxb5
{[%clk 00:03:44]} 24. Bxb5 {[%clk 00:15:24]} {[%emt 00:00:32]} Rxb5 {[%clk
00:04:13]} {[%emt 00:00:01]} 25. Rfd1 {[%clk 00:14:56]} {[%emt 00:00:57]} Rxd1+
{[%clk 00:03:56]} {[%emt 00:00:47]} 26. Rxd1 {[%clk 00:15:25]} {[%emt
00:00:01]} Rb2 {[%clk 00:04:20]} {[%emt 00:00:06]} 27. a4 {[%clk 00:14:55]}
{[%emt 00:01:01]} Rb3 {[%clk 00:04:46]} {[%emt 00:00:02]} 28. c4 {[%clk
00:14:43]} {[%emt 00:00:43]} Rb4 {[%clk 00:04:38]} {[%emt 00:00:37]} 29. c5
{[%clk 00:15:10]} {[%emt 00:00:02]} a5 {[%clk 00:03:49]} {[%emt 00:01:20]} 30.
Kf1 {[%clk 00:13:32]} {[%emt 00:02:08]} f5 {[%clk 00:02:25]} {[%emt 00:01:54]}
31. Ke2 {[%clk 00:13:21]} {[%emt 00:00:41]} e5 {[%clk 00:01:10]} {[%emt
00:01:45]} 32. Rd5 {[%clk 00:09:39]} {[%emt 00:04:12]} f6 {[%clk 00:01:40]} 33.
c6 {[%clk 00:09:35]} {[%emt 00:00:35]} Rxa4 {[%clk 00:01:42]} {[%emt 00:00:28]}
34. cxb7 {[%clk 00:09:47]} {[%emt 00:00:18]} Rb4 {[%clk 00:01:47]} {[%emt
00:00:25]} 35. Rxa5 {[%clk 00:10:07]} {[%emt 00:00:10]} Rxb7 {[%clk 00:02:11]}
{[%emt 00:00:05]} 1/2-1/2

[Event "Internationales Werder Bremen IM-Turnier"]
[Site "SV Werder Bremen, Clubräume in der Hemelinger Straße 17, Germany"]
[Date "2018.06.21"]
[Round "6.3"]
[White "Molchanov, Oleksii"]
[Black "Skliarov, Viktor"]
[Result "1-0"]
[TimeControl "90 Minuten/40 Züge + 30 Minuten/Rest + 30 Sekunden ab dem ersten Zug"]
[WhiteTitle "FM"]
[BlackTitle "IM"]
[WhiteFideId "14119820"]
[BlackFideId "14106736"]
[WhiteElo "2350"]
[BlackElo "2359"]

1. c4 {[%clk 01:30:52]} {[%emt 00:00:07]} e5 {[%clk 01:30:51]} {[%emt
00:00:10]} 2. Nc3 {[%clk 01:30:20]} {[%emt 00:01:01]} Nf6 {[%clk 01:29:26]}
{[%emt 00:01:56]} 3. Nf3 {[%clk 01:30:28]} {[%emt 00:00:22]} Nc6 {[%clk
01:28:00]} {[%emt 00:01:57]} 4. e3 {[%clk 01:30:42]} {[%emt 00:00:15]} Bb4
{[%clk 01:24:13]} {[%emt 00:04:17]} 5. Qc2 {[%clk 01:30:01]} {[%emt 00:01:10]}
Bxc3 {[%clk 01:17:11]} {[%emt 00:07:33]} 6. bxc3 {[%clk 01:29:53]} {[%emt
00:00:37]} d6 {[%clk 01:14:57]} {[%emt 00:02:44]} 7. e4 {[%clk 01:27:26]}
{[%emt 00:02:58]} Nh5 {[%clk 01:10:34]} {[%emt 00:04:52]} 8. Qd1 {[%clk
01:17:30]} {[%emt 00:10:26]} Qf6 {[%clk 01:05:57]} {[%emt 00:05:07]} 9. g3
{[%clk 01:14:33]} {[%emt 00:03:27]} Bg4 {[%clk 00:48:11]} {[%emt 00:18:15]} 10.
Be2 {[%clk 01:10:52]} {[%emt 00:04:12]} g6 {[%clk 00:37:27]} {[%emt 00:11:13]}
11. d3 {[%clk 01:07:40]} {[%emt 00:03:41]} Bxf3 {[%clk 00:36:45]} {[%emt
00:01:13]} 12. Bxf3 {[%clk 01:08:03]} {[%emt 00:00:07]} Ng7 {[%clk 00:37:12]}
{[%emt 00:00:03]} 13. Bg2 {[%clk 01:01:08]} {[%emt 00:07:24]} Ne6 {[%clk
00:35:01]} {[%emt 00:02:41]} 14. Rb1 {[%clk 01:00:47]} {[%emt 00:00:51]} Rb8
{[%clk 00:33:25]} {[%emt 00:02:06]} 15. O-O {[%clk 00:56:58]} {[%emt 00:04:18]}
O-O {[%clk 00:31:51]} {[%emt 00:02:05]} 16. f4 {[%clk 00:55:38]} {[%emt
00:01:49]} exf4 {[%clk 00:21:37]} {[%emt 00:10:45]} 17. d4 {[%clk 00:53:21]}
{[%emt 00:02:47]} Na5 {[%clk 00:19:45]} {[%emt 00:02:22]} 18. gxf4 {[%clk
00:42:07]} {[%emt 00:11:43]} Nxc4 {[%clk 00:18:05]} {[%emt 00:02:10]} 19. f5
{[%clk 00:41:44]} {[%emt 00:00:53]} Ng7 {[%clk 00:17:45]} {[%emt 00:00:50]} 20.
Qg4 {[%clk 00:39:23]} {[%emt 00:02:51]} Qd8 {[%clk 00:13:21]} {[%emt 00:04:54]}
21. Bh6 {[%clk 00:30:03]} {[%emt 00:09:50]} c5 {[%clk 00:11:18]} {[%emt
00:02:33]} 22. Rbd1 {[%clk 00:11:18]} {[%emt 00:19:15]} cxd4 {[%clk 00:11:16]}
{[%emt 00:00:32]} 23. cxd4 {[%clk 00:11:06]} {[%emt 00:00:41]} b5 {[%clk
00:11:44]} {[%emt 00:00:02]} 24. Bxg7 {[%clk 00:11:04]} {[%emt 00:00:32]} Kxg7
{[%clk 00:09:32]} {[%emt 00:02:42]} 25. f6+ {[%clk 00:11:28]} {[%emt 00:00:05]}
Kh8 {[%clk 00:09:55]} {[%emt 00:00:08]} 26. Qg5 {[%clk 00:11:53]} {[%emt
00:00:05]} Re8 {[%clk 00:09:14]} {[%emt 00:01:12]} 27. Rf4 {[%clk 00:08:52]}
{[%emt 00:03:31]} Re6 {[%clk 00:06:50]} {[%emt 00:02:53]} 28. Bh3 {[%clk
00:09:16]} {[%emt 00:00:06]} Qf8 {[%clk 00:05:11]} {[%emt 00:02:10]} 29. Bxe6
{[%clk 00:09:29]} {[%emt 00:00:17]} fxe6 {[%clk 00:05:38]} {[%emt 00:00:03]} 30.
f7 {[%clk 00:09:32]} {[%emt 00:00:28]} Qg7 {[%clk 00:06:02]} {[%emt 00:00:05]}
31. Qe7 {[%clk 00:08:29]} {[%emt 00:01:33]} Rf8 {[%clk 00:06:29]} {[%emt
00:00:03]} 32. Qxe6 {[%clk 00:08:40]} {[%emt 00:00:20]} Nb2 {[%clk 00:06:46]}
{[%emt 00:00:13]} 33. Rd2 {[%clk 00:08:20]} {[%emt 00:00:50]} Nc4 {[%clk
00:07:10]} {[%emt 00:00:06]} 34. Rdf2 {[%clk 00:06:26]} {[%emt 00:02:23]} Qxd4
{[%clk 00:07:34]} {[%emt 00:00:06]} 35. Qd5 {[%clk 00:02:47]} {[%emt 00:04:09]}
Qxd5 {[%clk 00:01:43]} {[%emt 00:06:21]} 36. exd5 {[%clk 00:03:15]} {[%emt
00:00:01]} Kg7 {[%clk 00:02:09]} {[%emt 00:00:04]} 37. Rf6 {[%clk 00:02:40]}
{[%emt 00:01:05]} a5 {[%clk 00:01:54]} {[%emt 00:00:45]} 38. h3 {[%clk
00:01:43]} {[%emt 00:01:26]} a4 {[%clk 00:01:20]} {[%emt 00:01:05]} 39. R6f4
{[%clk 00:01:34]} {[%emt 00:00:38]} Ne5 {[%clk 00:00:59]} {[%emt 00:00:51]} 40.
Rf1 {[%clk 00:01:23]} {[%emt 00:00:40]} Rxf7 {[%clk 00:00:36]} {[%emt
00:00:53]} 41. Rxf7+ {[%clk 00:30:08]} {[%emt 00:01:45]} Nxf7 {[%clk 00:31:02]}
{[%emt 00:00:05]} 42. Rb1 {[%clk 00:30:31]} {[%emt 00:00:06]} Ng5 {[%clk
00:28:42]} {[%emt 00:02:49]} 43. Rxb5 {[%clk 00:23:15]} {[%emt 00:07:48]} Nxh3+
{[%clk 00:28:43]} {[%emt 00:00:28]} 44. Kh2 {[%clk 00:20:51]} {[%emt 00:02:54]}
Nf4 {[%clk 00:27:44]} {[%emt 00:01:27]} 45. Rb4 {[%clk 00:18:31]} {[%emt
00:02:52]} Nxd5 {[%clk 00:25:12]} {[%emt 00:03:02]} 46. Rxa4 {[%clk 00:18:56]}
{[%emt 00:00:05]} Kf6 {[%clk 00:25:15]} {[%emt 00:00:26]} 47. Rh4 {[%clk
00:15:17]} {[%emt 00:04:10]} h5 {[%clk 00:19:53]} {[%emt 00:05:51]} 48. a4
{[%clk 00:15:34]} {[%emt 00:00:14]} Ke6 {[%clk 00:19:22]} {[%emt 00:01:01]} 49.
a5 {[%clk 00:15:28]} {[%emt 00:00:37]} Kd7 {[%clk 00:18:13]} {[%emt 00:01:38]}
50. a6 {[%clk 00:13:37]} {[%emt 00:02:21]} Kc7 {[%clk 00:15:33]} {[%emt
00:03:09]} 51. Rd4 {[%clk 00:13:36]} {[%emt 00:00:32]} Nb6 {[%clk 00:13:43]}
{[%emt 00:02:20]} 52. Rb4 {[%clk 00:13:28]} {[%emt 00:00:38]} Nc8 {[%clk
00:13:18]} {[%emt 00:00:54]} 53. Kg3 {[%clk 00:12:08]} {[%emt 00:01:52]} g5
{[%clk 00:12:02]} {[%emt 00:01:45]} 54. Kf3 {[%clk 00:11:45]} {[%emt 00:00:53]}
h4 {[%clk 00:10:19]} {[%emt 00:02:12]} 55. Kg4 {[%clk 00:11:07]} {[%emt
00:01:09]} d5 {[%clk 00:08:18]} {[%emt 00:02:32]} 56. Rb1 {[%clk 00:10:54]}
{[%emt 00:00:43]} d4 {[%clk 00:06:31]} {[%emt 00:02:17]} 57. Kxg5 {[%clk
00:11:12]} {[%emt 00:00:12]} d3 {[%clk 00:05:53]} {[%emt 00:01:07]} 58. Kf4
{[%clk 00:11:31]} {[%emt 00:00:11]} d2 {[%clk 00:05:43]} {[%emt 00:00:40]} 59.
Ke3 {[%clk 00:11:55]} {[%emt 00:00:06]} d1=Q {[%clk 00:05:58]} {[%emt
00:00:15]} 60. Rxd1 {[%clk 00:12:22]} {[%emt 00:00:03]} Kb6 {[%clk 00:06:21]}
{[%emt 00:00:07]} 61. Ra1 {[%clk 00:12:33]} {[%emt 00:00:20]} Na7 {[%clk
00:05:22]} {[%emt 00:01:28]} 62. Kd4 {[%clk 00:09:24]} {[%emt 00:03:40]} h3
{[%clk 00:05:12]} {[%emt 00:00:39]} 63. Ra2 {[%clk 00:09:42]} {[%emt 00:00:12]}
Nc6+ {[%clk 00:02:40]} {[%emt 00:03:03]} 64. Kc4 {[%clk 00:10:06]} {[%emt
00:00:06]} h2 {[%clk 00:02:07]} {[%emt 00:01:02]} 65. Rxh2 {[%clk 00:10:19]}
{[%emt 00:00:17]} Kxa6 {[%emt 00:00:03]} 66. Kc5 {[%clk 00:10:15]} {[%emt
00:00:33]} Ne5 {[%clk 00:02:37]} {[%emt 00:00:27]} 67. Re2 {[%clk 00:08:15]}
{[%emt 00:02:31]} Nd3+ {[%clk 00:01:31]} {[%emt 00:01:36]} 68. Kc4 {[%clk
00:08:20]} {[%emt 00:00:24]} Nf4 {[%clk 00:01:56]} {[%emt 00:00:05]} 69. Rf2
{[%clk 00:07:52]} {[%emt 00:00:58]} Nh5 {[%clk 00:02:03]} {[%emt 00:00:22]} 70.
Kc5 {[%clk 00:07:39]} {[%emt 00:00:43]} Kb7 {[%clk 00:02:10]} {[%emt 00:00:24]}
71. Rf5 {[%clk 00:07:25]} {[%emt 00:00:44]} Ng3 {[%clk 00:02:25]} {[%emt
00:00:14]} 72. Rf7+ {[%clk 00:07:28]} {[%emt 00:00:27]} Kc8 {[%clk 00:02:30]}
{[%emt 00:00:25]} 73. Kd5 {[%clk 00:06:40]} {[%emt 00:01:18]} Kd8 {[%clk
00:02:32]} {[%emt 00:00:27]} 74. Ke5 {[%clk 00:07:09]} {[%emt 00:00:02]} Ne2
{[%clk 00:02:41]} {[%emt 00:00:21]} 75. Kd6 {[%clk 00:06:17]} {[%emt 00:01:22]}
Kc8 {[%clk 00:03:07]} {[%emt 00:00:04]} 76. Rc7+ {[%clk 00:06:40]} {[%emt
00:00:07]} Kb8 {[%clk 00:03:26]} {[%emt 00:00:11]} 77. Rc4 {[%clk 00:05:57]}
{[%emt 00:01:14]} Kb7 {[%clk 00:03:37]} {[%emt 00:00:20]} 78. Ke5 {[%clk
00:05:30]} {[%emt 00:00:57]} Kb6 {[%clk 00:03:32]} {[%emt 00:00:35]} 79. Rc2
{[%clk 00:05:53]} {[%emt 00:00:07]} Ng3 {[%clk 00:03:46]} {[%emt 00:00:15]} 80.
Rg2 {[%clk 00:06:01]} {[%emt 00:00:21]} Nf1 {[%clk 00:04:05]} {[%emt 00:00:11]}
81. Ke4 {[%emt 00:00:37]} 1-0

[Event "Internationales Werder Bremen IM-Turnier"]
[Site "SV Werder Bremen, Clubräume in der Hemelinger Straße 17, Germany"]
[Date "2018.06.21"]
[Round "6.2"]
[White "Osmanodja, Filiz"]
[Black "Ahlander, Björn"]
[Result "0-1"]
[TimeControl "90 Minuten/40 Züge + 30 Minuten/Rest + 30 Sekunden ab dem ersten Zug"]
[WhiteTitle "WIM"]
[BlackTitle "IM"]
[WhiteFideId "24633569"]
[BlackFideId "1700251"]
[WhiteElo "2352"]
[BlackElo "2435"]

1. e4 {[%clk 01:30:59]} {[%emt 00:03:57]} c5 {[%clk 01:30:53]} {[%emt
00:00:07]} 2. Nc3 {[%clk 01:31:26]} {[%emt 00:00:03]} Nc6 {[%clk 01:28:47]}
{[%emt 00:02:35]} 3. Nf3 {[%clk 01:31:46]} {[%emt 00:00:11]} g6 {[%clk
01:27:19]} {[%emt 00:01:58]} 4. d4 {[%clk 01:32:12]} {[%emt 00:00:05]} cxd4
{[%clk 01:27:38]} {[%emt 00:00:11]} 5. Nxd4 {[%clk 01:32:40]} {[%emt 00:00:02]}
Bg7 {[%clk 01:27:55]} {[%emt 00:00:12]} 6. Be3 {[%clk 01:32:33]} {[%emt
00:00:38]} d6 {[%clk 01:27:37]} {[%emt 00:00:47]} 7. Bc4 {[%clk 01:32:13]}
{[%emt 00:00:51]} Nf6 {[%clk 01:27:56]} {[%emt 00:00:11]} 8. f3 {[%clk
01:32:23]} {[%emt 00:00:21]} O-O {[%clk 01:27:51]} {[%emt 00:00:34]} 9. Qd2
{[%clk 01:32:42]} {[%emt 00:00:12]} Bd7 {[%clk 01:27:52]} {[%emt 00:00:27]} 10.
O-O-O {[%clk 01:32:28]} {[%emt 00:00:45]} Rb8 {[%clk 01:27:09]} {[%emt
00:01:12]} 11. Bb3 {[%clk 01:32:28]} {[%emt 00:00:32]} Na5 {[%clk 01:26:12]}
{[%emt 00:01:26]} 12. h4 {[%clk 01:30:28]} {[%emt 00:02:30]} b5 {[%clk
01:23:42]} {[%emt 00:02:59]} 13. Kb1 {[%clk 01:30:44]} {[%emt 00:00:16]} Nc4
{[%clk 01:19:29]} {[%emt 00:04:41]} 14. Bxc4 {[%clk 01:31:11]} {[%emt
00:00:04]} bxc4 {[%clk 01:19:53]} {[%emt 00:00:05]} 15. Ka1 {[%clk 01:31:25]}
{[%emt 00:00:17]} h5 {[%clk 01:18:44]} {[%emt 00:01:38]} 16. Nde2 {[%clk
01:16:55]} {[%emt 00:15:01]} Qa5 {[%clk 01:15:12]} {[%emt 00:04:00]} 17. Bd4
{[%clk 01:14:18]} {[%emt 00:03:09]} e5 {[%clk 01:00:30]} {[%emt 00:15:12]} 18.
Be3 {[%clk 01:13:45]} {[%emt 00:01:04]} Qb4 {[%clk 01:00:51]} {[%emt 00:00:08]}
19. Rb1 {[%clk 01:13:23]} {[%emt 00:00:53]} Be6 {[%clk 00:42:17]} {[%emt
00:19:03]} 20. Bh6 {[%clk 00:59:41]} {[%emt 00:14:13]} Rfd8 {[%clk 00:34:29]}
{[%emt 00:08:17]} 21. Bxg7 {[%clk 00:48:59]} {[%emt 00:11:13]} Kxg7 {[%clk
00:34:56]} {[%emt 00:00:03]} 22. Qg5 {[%clk 00:46:12]} {[%emt 00:03:16]} Qc5
{[%clk 00:29:36]} {[%emt 00:05:49]} 23. g4 {[%clk 00:35:18]} {[%emt 00:11:25]}
Nh7 {[%clk 00:25:16]} {[%emt 00:04:49]} 24. Qc1 {[%clk 00:34:55]} {[%emt
00:00:54]} hxg4 {[%clk 00:20:47]} {[%emt 00:04:59]} 25. f4 {[%clk 00:24:04]}
{[%emt 00:11:21]} exf4 {[%clk 00:20:02]} {[%emt 00:01:14]} 26. Nxf4 {[%clk
00:24:22]} {[%emt 00:00:13]} Qe5 {[%clk 00:19:43]} {[%emt 00:00:48]} 27. h5
{[%clk 00:19:59]} {[%emt 00:04:54]} g5 {[%clk 00:19:09]} {[%emt 00:01:03]} 28.
h6+ {[%clk 00:19:19]} {[%emt 00:01:12]} Kh8 {[%clk 00:19:26]} {[%emt 00:00:12]}
29. Nxe6 {[%clk 00:18:33]} {[%emt 00:01:16]} fxe6 {[%clk 00:18:41]} {[%emt
00:01:14]} 30. Qg1 {[%clk 00:17:29]} {[%emt 00:01:35]} d5 {[%clk 00:15:13]}
{[%emt 00:03:57]} 31. exd5 {[%clk 00:15:52]} {[%emt 00:02:08]} exd5 {[%clk
00:15:41]} {[%emt 00:00:02]} 32. Re1 {[%clk 00:12:38]} {[%emt 00:03:44]} Qd6
{[%clk 00:10:14]} {[%emt 00:05:56]} 33. Qxa7 {[%clk 00:07:18]} {[%emt
00:05:51]} Rd7 {[%clk 00:10:19]} {[%emt 00:00:25]} 34. Qd4 {[%clk 00:07:44]}
{[%emt 00:00:05]} Qf6 {[%clk 00:10:17]} {[%emt 00:00:30]} 35. Qxg4 {[%clk
00:04:25]} {[%emt 00:03:51]} Rdb7 {[%clk 00:09:54]} {[%emt 00:00:52]} 36. Re6
{[%clk 00:01:33]} {[%emt 00:03:22]} Qf2 {[%clk 00:10:21]} {[%emt 00:00:03]} 37.
Rb1 {[%clk 00:00:41]} {[%emt 00:01:22]} d4 {[%clk 00:09:42]} {[%emt 00:01:08]}
38. Nd5 {[%clk 00:00:52]} {[%emt 00:00:21]} Rxb2 {[%clk 00:08:41]} {[%emt
00:01:31]} 39. Rb6 {[%clk 00:00:41]} {[%emt 00:00:42]} Rxa2+ {[%clk 00:07:29]}
{[%emt 00:01:42]} 40. Kxa2 {[%clk 00:01:07]} {[%emt 00:00:03]} Qxc2+ {[%clk
00:05:59]} {[%emt 00:01:59]} 41. Ka3 {[%clk 00:01:32]} {[%emt 00:00:06]} Ra8+
{[%clk 00:03:22]} {[%emt 00:03:04]} 42. Kb4 {[%clk 00:29:56]} {[%emt 00:02:08]}
Qxb1+ {[%clk 00:33:24]} {[%emt 00:00:27]} 43. Kc5 {[%clk 00:24:19]} {[%emt
00:06:07]} Ra5+ {[%clk 00:28:48]} {[%emt 00:05:05]} 44. Kc6 {[%clk 00:24:35]}
{[%emt 00:00:15]} Qg6+ {[%clk 00:25:56]} {[%emt 00:03:21]} 45. Kb7 {[%clk
00:25:04]} {[%emt 00:00:02]} Qf7+ {[%clk 00:25:04]} {[%emt 00:01:21]} 46. Nc7
{[%clk 00:25:19]} {[%emt 00:00:16]} Rd5 {[%clk 00:22:58]} {[%emt 00:02:35]} 47.
Qc8 {[%clk 00:18:21]} {[%emt 00:07:29]} Nf8 {[%clk 00:23:21]} {[%emt 00:00:06]}
48. Kb8 {[%clk 00:16:09]} {[%emt 00:02:42]} Qf4 {[%clk 00:16:54]} {[%emt
00:06:56]} 49. Kb7 {[%clk 00:08:48]} {[%emt 00:07:52]} Rd7 {[%clk 00:14:00]}
{[%emt 00:03:24]} 50. Rc6 {[%clk 00:07:05]} {[%emt 00:02:14]} d3 {[%clk
00:12:41]} {[%emt 00:01:48]} 51. Ka6 {[%clk 00:02:46]} {[%emt 00:04:50]} c3
{[%clk 00:07:40]} {[%emt 00:05:30]} 52. Ne6 {[%clk 00:01:37]} {[%emt 00:01:40]}
Qa4+ {[%clk 00:07:01]} {[%emt 00:01:08]} 53. Kb6 {[%clk 00:02:06]} {[%emt
00:00:02]} Qb4+ {[%clk 00:03:26]} {[%emt 00:04:04]} 54. Ka6 {[%clk 00:02:34]}
{[%emt 00:00:03]} Rf7 {[%clk 00:03:34]} {[%emt 00:00:22]} 55. Rxc3 {[%clk
00:00:59]} {[%emt 00:02:05]} d2 {[%clk 00:02:50]} {[%emt 00:01:13]} 56. Rd3
{[%clk 00:01:10]} {[%emt 00:00:19]} Qa4+ {[%clk 00:02:35]} {[%emt 00:00:45]} 57.
Kb6 {[%clk 00:01:39]} {[%emt 00:00:02]} Qb4+ {[%clk 00:02:43]} {[%emt
00:00:21]} 58. Ka6 {[%clk 00:02:05]} {[%emt 00:00:04]} Rf6 {[%clk 00:02:35]}
{[%emt 00:00:38]} 59. Rd8 {[%clk 00:01:31]} {[%emt 00:01:04]} d1=Q {[%clk
00:02:23]} {[%emt 00:00:42]} 60. Rxd1 {[%clk 00:00:53]} {[%emt 00:01:09]} Qa4+
{[%clk 00:01:22]} {[%emt 00:01:31]} 61. Kb7 {[%clk 00:00:43]} {[%emt 00:00:40]}
Qxd1 {[%clk 00:01:14]} {[%emt 00:00:38]} 62. Nxf8 {[%clk 00:00:58]} {[%emt
00:00:15]} Qb3+ {[%clk 00:00:59]} {[%emt 00:00:44]} 63. Kc7 {[%clk 00:00:42]}
{[%emt 00:00:47]} Qc4+ {[%clk 00:01:04]} {[%emt 00:00:24]} 0-1